bitfinex-derivatives/quotes_BTCF0:USTF0_20250626
["timestamp","ask_amount","ask_price","bid_price","bid_amount"]
[1750932101372,0.99257661,107400.0,107390.0,0.65655928]
[1750932101571,0.57112285,107400.0,107390.0,0.65655928]
[1750932101771,0.78184973,107400.0,107390.0,0.86728616]
[1750932102671,0.78184973,107400.0,107390.0,0.68215778]
[1750932102872,0.78184973,107400.0,107390.0,0.86728616]
[1750932106169,0.78184973,107400.0,107390.0,0.65655928]
[1750932106576,0.78184973,107400.0,107390.0,0.86728616]
[1750932107176,0.78184973,107400.0,107390.0,0.65655928]
[1750932107379,0.78184973,107400.0,107390.0,0.86728616]
[1750932107679,0.57112285,107400.0,107390.0,0.86728616]
[1750932107874,0.78184973,107400.0,107390.0,0.86728616]
[1750932108479,0.75764728,107400.0,107390.0,0.86728616]
[1750932109479,0.78189219,107400.0,107390.0,0.86728616]
[1750932109679,0.75764728,107400.0,107390.0,0.86728616]
[1750932109881,0.75764728,107400.0,107390.0,0.65655928]
[1750932110075,0.75764728,107400.0,107390.0,0.86728616]
[1750932112775,0.39684728,107400.0,107390.0,0.86728616]
[1750932113086,0.75764728,107400.0,107390.0,0.94163026]
[1750932113473,0.75764728,107400.0,107390.0,0.73090338]
[1750932113779,0.78188861,107400.0,107390.0,0.86728616]
[1750932115679,0.42108861,107400.0,107390.0,0.86728616]
[1750932115980,0.78188861,107400.0,107390.0,0.86728616]
[1750932116681,0.75764728,107400.0,107390.0,0.94163026]
[1750932116882,0.75764728,107400.0,107390.0,0.73090338]
[1750932117074,0.75764728,107400.0,107390.0,0.94163026]
[1750932117376,0.5469204,107400.0,107390.0,0.73090338]
[1750932117579,0.99927416,107400.0,107390.0,0.65655928]
[1750932117783,0.99927416,107400.0,107390.0,0.73090338]
[1750932118681,0.99927416,107400.0,107390.0,0.94163026]
[1750932119282,0.99927416,107400.0,107390.0,0.73090338]
[1750932119487,1.00927416,107400.0,107390.0,0.94163026]
[1750932120488,0.99927416,107400.0,107390.0,0.94163026]
[1750932120885,0.5778204,107400.0,107390.0,0.73090338]
[1750932121085,0.99927416,107400.0,107390.0,0.73090338]
[1750932122588,0.99927416,107400.0,107390.0,0.94163026]
[1750932123687,0.99927416,107400.0,107390.0,0.73090338]
[1750932123888,0.99927416,107400.0,107390.0,0.94163026]
[1750932124086,0.99927416,107400.0,107390.0,0.73090338]
[1750932124283,0.99927416,107400.0,107390.0,0.94163026]
[1750932125587,0.5778204,107400.0,107390.0,0.94163026]
[1750932125788,0.99927416,107400.0,107390.0,0.94163026]
[1750932126190,0.99927416,107400.0,107390.0,0.73090338]
[1750932126385,0.99927416,107400.0,107390.0,0.94163026]
[1750932126786,0.5778204,107400.0,107390.0,0.94163026]
[1750932126985,0.99927416,107400.0,107390.0,0.94163026]
[1750932127592,0.5778204,107400.0,107390.0,0.94163026]
[1750932127789,0.78854728,107400.0,107390.0,0.94163026]
[1750932128794,0.78854728,107400.0,107390.0,0.73090338]
[1750932129091,0.78854728,107400.0,107390.0,0.94163026]
[1750932132494,0.78854728,107400.0,107390.0,0.73090338]
[1750932132695,0.78854728,107400.0,107390.0,0.75650188]
[1750932132894,0.5778204,107400.0,107390.0,0.94163026]
[1750932133095,0.99927416,107400.0,107390.0,0.94163026]
[1750932134498,0.78854728,107400.0,107390.0,0.94163026]
[1750932134796,0.81290539,107400.0,107390.0,0.86728616]
[1750932136700,0.81290539,107400.0,107390.0,0.65655928]
[1750932136901,0.81290539,107400.0,107390.0,0.86728616]
[1750932138602,1.02363227,107400.0,107390.0,0.65655928]
[1750932138797,1.02363227,107400.0,107390.0,0.86728616]
[1750932139402,1.02363227,107400.0,107390.0,0.65655928]
[1750932141300,0.67457851,107400.0,107390.0,0.3781377]
[1750932141512,1.08713227,107400.0,107390.0,0.3781377]
[1750932141696,0.66567851,107400.0,107390.0,0.3781377]
[1750932141898,1.08713227,107400.0,107390.0,0.3781377]
[1750932142298,1.08713227,107400.0,107390.0,0.3771377]
[1750932142493,1.08813227,107400.0,107390.0,0.3771377]
[1750932144610,1.08813227,107400.0,107390.0,0.3761377]
[1750932144808,1.08913227,107400.0,107390.0,0.3761377]
[1750932147309,0.66767851,107400.0,107390.0,0.3761377]
[1750932147510,1.08913227,107400.0,107390.0,0.3761377]
[1750932148100,0.70767851,107400.0,107390.0,0.3761377]
[1750932148307,1.12913227,107400.0,107390.0,0.3761377]
[1750932148507,1.12813227,107400.0,107390.0,0.3761377]
[1750932148706,0.70667851,107400.0,107390.0,0.3771377]
[1750932149009,1.12813227,107400.0,107390.0,0.3771377]
[1750932149208,1.12913227,107400.0,107390.0,0.3761377]
[1750932149613,1.12813227,107400.0,107390.0,0.3771377]
[1750932152318,0.70667851,107400.0,107390.0,0.3771377]
[1750932152505,1.12813227,107400.0,107390.0,0.3771377]
[1750932152705,1.12813227,107400.0,107390.0,0.56226608]
[1750932152908,1.12713227,107400.0,107390.0,0.56326608]
[1750932153915,1.12713227,107400.0,107390.0,0.56226608]
[1750932154117,1.12813227,107400.0,107390.0,0.56226608]
[1750932155018,0.70667851,107400.0,107390.0,0.56226608]
[1750932155217,1.12713227,107400.0,107390.0,0.56226608]
[1750932155420,1.12713227,107400.0,107390.0,0.56326608]
[1750932155610,1.08713227,107400.0,107390.0,0.56326608]
[1750932155914,1.08713227,107400.0,107390.0,0.59496608]
[1750932156118,1.39698539,107400.0,107390.0,0.80569296]
[1750932156417,1.37262728,107400.0,107390.0,0.86859296]
[1750932158120,0.78854728,107400.0,107390.0,0.86859296]
[1750932158820,0.5778204,107400.0,107390.0,0.86859296]
[1750932159020,0.99927416,107400.0,107390.0,0.86859296]
[1750932159221,0.5778204,107400.0,107390.0,0.86859296]
[1750932159624,0.99927416,107400.0,107390.0,0.86859296]
[1750932161025,0.99927416,107400.0,107390.0,0.65786608]
[1750932161327,0.99927416,107400.0,107390.0,0.86859296]
[1750932161527,0.99927416,107400.0,107390.0,0.65786608]
[1750932162628,0.99927416,107400.0,107390.0,0.4727377]
[1750932162829,0.99927416,107400.0,107390.0,0.65786608]
[1750932163225,0.99927416,107400.0,107390.0,0.47172838]
[1750932163430,1.02369199,107400.0,107390.0,0.65786588]
[1750932163629,1.08509199,107400.0,107390.0,0.65786588]
[1750932164124,1.08509199,107400.0,107390.0,0.4398375]
[1750932164331,1.08509199,107400.0,107390.0,0.56326588]
[1750932164628,1.08509199,107400.0,107390.0,0.56226588]
[1750932164828,1.08609199,107400.0,107390.0,0.56226588]
[1750932165432,1.08509199,107400.0,107390.0,0.56226588]
[1750932165626,1.08609199,107400.0,107390.0,0.56226588]
[1750932166134,1.08609199,107400.0,107390.0,0.56126588]
[1750932166328,1.08709199,107400.0,107390.0,0.56126588]
[1750932168725,0.66563823,107400.0,107390.0,0.56126588]
[1750932169035,1.24709199,107400.0,107390.0,0.56126588]
[1750932170337,1.24709199,107400.0,107390.0,0.37512838]
[1750932171239,1.24709199,107400.0,107390.0,0.56126578]
[1750932172033,1.24709199,107400.0,107390.0,0.37512838]
[1750932173840,1.24709199,107400.0,107390.0,0.56126588]
[1750932174041,1.24709199,107400.0,107390.0,0.59426588]
[1750932177943,1.24709199,107400.0,107390.0,0.40812838]
[1750932178145,1.45781887,107400.0,107390.0,0.19]
[1750932178444,1.59765887,107400.0,107390.0,0.19]
[1750932178744,1.60693199,107400.0,107390.0,0.19]
[1750932179942,1.75061199,107400.0,107390.0,0.19]
[1750932180138,1.75053199,107400.0,107390.0,0.19]
[1750932180333,1.75053199,107400.0,107390.0,0.2221]
[1750932180845,1.71923199,107400.0,107390.0,0.40722838]
[1750932181044,1.71923199,107400.0,107390.0,0.46842838]
[1750932181247,2.01923199,107400.0,107390.0,0.46842838]
[1750932184846,2.04953199,107400.0,107390.0,0.46842838]
[1750932187243,2.41033199,107400.0,107390.0,0.46842838]
[1750932187749,2.41033199,107400.0,107390.0,0.40722838]
[1750932190250,1.98887823,107400.0,107390.0,0.40722838]
[1750932190450,2.41033199,107400.0,107390.0,0.40722838]
[1750932190749,2.14033199,107400.0,107390.0,0.40722838]
[1750932192653,2.14033199,107400.0,107390.0,0.2221]
[1750932192853,2.14033199,107400.0,107390.0,0.40722838]
[1750932194554,2.36033199,107400.0,107390.0,0.40722838]
[1750932195352,1.77689199,107400.0,107390.0,0.40722838]
[1750932195552,2.35949199,107400.0,107390.0,0.40722838]
[1750932200565,2.13949199,107400.0,107390.0,0.40722838]
[1750932204863,2.35021887,107400.0,107390.0,0.37512838]
[1750932205165,0.22368816,107390.0,107380.0,0.00093123]
[1750932205468,1.43986656,107390.0,107380.0,0.03817922]
[1750932205669,1.0184128,107390.0,107380.0,0.00093123]
[1750932205966,1.43986656,107390.0,107380.0,0.00093123]
[1750932206270,1.43986656,107390.0,107380.0,0.03818123]
[1750932206464,1.0194128,107390.0,107380.0,0.00093123]
[1750932206759,1.44086656,107390.0,107380.0,0.00093123]
[1750932206967,1.44186656,107390.0,107380.0,0.03818123]
[1750932207275,0.1861894,107360.0,107350.0,0.09386162]
[1750932207460,0.96844316,107360.0,107350.0,0.62283829]
[1750932207770,0.5469894,107360.0,107350.0,0.98144358]
[1750932207958,0.75771628,107360.0,107350.0,0.7707167]
[1750932208363,0.5469894,107360.0,107350.0,0.7707167]
[1750932208570,0.96844316,107360.0,107350.0,0.7707167]
[1750932208861,1.17917004,107360.0,107350.0,0.34093149]
[1750932209067,1.26779771,107360.0,107350.0,0.34393149]
[1750932209259,1.26779771,107360.0,107350.0,0.34493149]
[1750932209260,1.31779771,107360.0,107350.0,0.34493149]
[1750932209563,1.55779771,107360.0,107350.0,0.00493149]
[1750932209762,1.73023771,107360.0,107350.0,0.00493149]
[1750932209960,1.09805707,107360.0,107350.0,0.00393149]
[1750932210163,1.09805707,107360.0,107350.0,0.00493149]
[1750932210462,1.51951083,107360.0,107350.0,0.00493149]
[1750932210654,1.09805707,107360.0,107350.0,0.00493149]
[1750932210856,1.51951083,107360.0,107350.0,0.00493149]
[1750932211258,1.09805707,107360.0,107350.0,0.00493149]
[1750932211459,1.55779771,107360.0,107350.0,0.00493149]
[1750932211668,1.94105083,107360.0,107350.0,0.00493149]
[1750932211870,2.00605083,107360.0,107350.0,0.00493149]
[1750932212370,1.58459707,107360.0,107350.0,0.00193149]
[1750932212666,2.24026538,107360.0,107350.0,0.00193149]
[1750932213766,1.51698538,107360.0,107350.0,0.00193149]
[1750932214067,0.82824911,107360.0,107350.0,0.4998099]
[1750932214268,1.31410882,107360.0,107350.0,0.03919149]
[1750932214472,1.53410882,107360.0,107350.0,0.00193149]
[1750932215170,0.9715894,107360.0,107350.0,0.00193149]
[1750932215466,1.53410882,107360.0,107350.0,0.00193149]
[1750932215668,1.06473829,107360.0,107350.0,0.00193149]
[1750932215878,1.345998,107360.0,107350.0,0.00193149]
[1750932216360,1.62725771,107360.0,107350.0,0.00193149]
[1750932217668,0.186224,107340.0,107330.0,0.2360785]
[1750932217857,1.89140371,107340.0,107330.0,0.5960785]
[1750932219476,1.611144,107340.0,107330.0,0.6000785]
[1750932219665,1.89240371,107340.0,107330.0,0.6020785]
[1750932219968,1.89240371,107340.0,107330.0,0.006]
[1750932220171,2.20946996,107340.0,107330.0,1e-07]
[1750932220468,2.025044,107340.0,107330.0,1e-07]
[1750932220671,1.28398371,107340.0,107330.0,1e-07]
[1750932220868,2.24280371,107340.0,107330.0,0.0372661]
[1750932221069,2.18060371,107340.0,107330.0,0.49787851]
[1750932221274,2.18060371,107340.0,107330.0,0.367266]
[1750932221477,1.930644,107340.0,107330.0,0.037266]
[1750932221671,2.11871821,107340.0,107320.0,0.34856605]
[1750932221870,2.11871821,107340.0,107320.0,0.63616605]
[1750932221871,0.5470414,107330.0,107320.0,0.63616605]
[1750932222275,0.5470414,107330.0,107320.0,1.06530417]
[1750932222670,0.5470414,107330.0,107320.0,0.91742576]
[1750932222968,0.5470414,107330.0,107320.0,1.06530417]
[1750932223582,0.3608,107330.0,107320.0,1.06530417]
[1750932223769,0.5945978,107340.0,107330.0,0.1862414]
[1750932223965,0.5945978,107340.0,107330.0,0.92537952]
[1750932224273,0.4538991,107360.0,107340.0,0.3258668]
[1750932224477,0.68664,107360.0,107350.0,0.61534482]
[1750932224670,0.68664,107360.0,107350.0,0.94534482]
[1750932224871,0.6400884,107360.0,107350.0,0.94534482]
[1750932226172,0.6410884,107360.0,107350.0,0.94734482]
[1750932227676,0.6410884,107360.0,107350.0,0.66608511]
[1750932227872,0.6410884,107360.0,107350.0,0.94734482]
[1750932228177,0.6410884,107360.0,107350.0,0.94934482]
[1750932228766,0.6410884,107360.0,107350.0,0.66808511]
[1750932231375,0.6410884,107360.0,107350.0,1.50340511]
[1750932231376,0.92234811,107360.0,107350.0,1.50340511]
[1750932231679,0.6410884,107360.0,107350.0,1.50340511]
[1750932232071,0.92234811,107360.0,107350.0,1.50340511]
[1750932232275,0.6410884,107360.0,107350.0,1.81646482]
[1750932232673,0.6410884,107360.0,107350.0,1.53520511]
[1750932233071,0.94694758,107360.0,107350.0,1.53380511]
[1750932233272,0.94694758,107360.0,107350.0,0.3658]
[1750932233477,0.94694758,107360.0,107350.0,0.334]
[1750932233679,1.00754758,107360.0,107350.0,0.66808501]
[1750932233879,0.94694758,107360.0,107350.0,0.66808501]
[1750932234087,0.94694758,107360.0,107350.0,0.69988501]
[1750932235382,0.66568787,107360.0,107350.0,0.69988501]
[1750932235683,0.94694758,107360.0,107350.0,0.69988501]
[1750932235885,0.66568787,107360.0,107350.0,0.69988501]
[1750932236076,0.94694758,107360.0,107350.0,0.69988501]
[1750932237183,0.94694758,107360.0,107350.0,0.73138501]
[1750932237682,0.66568787,107360.0,107350.0,0.73138501]
[1750932237878,0.69708787,107360.0,107350.0,0.73138501]
[1750932238078,0.69708787,107360.0,107350.0,0.76278501]
[1750932239089,0.61913647,107360.0,107350.0,1.04404472]
[1750932239281,0.3618,107360.0,107350.0,1.04404472]
[1750932242089,0.3618,107360.0,107350.0,1.29404472]
[1750932242388,0.001,107360.0,107350.0,2.23540472]
[1750932243186,0.1871894,107360.0,107350.0,2.23540472]
[1750932243388,0.001,107360.0,107350.0,1.95414501]
[1750932243589,0.001,107360.0,107350.0,2.23540472]
[1750932243787,0.1871894,107360.0,107350.0,2.23540472]
[1750932244187,0.1871894,107360.0,107350.0,1.95414501]
[1750932244388,0.1871894,107360.0,107350.0,2.23540472]
[1750932245897,0.1871894,107360.0,107350.0,1.95414501]
[1750932246092,0.1871894,107360.0,107350.0,2.23540472]
[1750932246884,0.1871894,107360.0,107350.0,1.95202501]
[1750932247090,0.1871894,107360.0,107350.0,2.23328472]
[1750932247489,0.001,107360.0,107350.0,2.23328472]
[1750932250301,0.001,107360.0,107350.0,1.95202501]
[1750932250505,0.001,107360.0,107350.0,2.23328472]
[1750932250805,0.5469721,107370.0,107360.0,0.1861889]
[1750932250997,0.5469721,107370.0,107360.0,1.00832702]
[1750932251502,0.5469721,107370.0,107360.0,0.73642625]
[1750932251702,0.5469721,107370.0,107360.0,1.01768596]
[1750932252296,0.3608,107370.0,107360.0,1.01768596]
[1750932252702,0.3608,107370.0,107360.0,0.86980755]
[1750932252902,0.5469716,107370.0,107360.0,1.01868596]
[1750932254800,0.5469716,107370.0,107360.0,1.01968596]
[1750932255301,0.5469716,107370.0,107360.0,0.73842625]
[1750932255508,0.5469716,107370.0,107360.0,1.01032702]
[1750932258108,0.5469716,107370.0,107360.0,0.72906731]
[1750932258309,0.5469716,107370.0,107360.0,1.01032702]
[1750932258704,0.3608,107370.0,107360.0,1.08461848]
[1750932258905,0.2327078,107380.0,107370.0,0.1861716]
[1750932259105,0.2327078,107380.0,107370.0,1.89474972]
[1750932259399,0.781663,107390.0,107380.0,0.1861542]
[1750932259708,0.801663,107390.0,107380.0,0.65403261]
[1750932260212,0.3618,107390.0,107380.0,0.68473261]
[1750932260509,0.5479369,107390.0,107380.0,0.96599232]
[1750932260704,0.1871369,107390.0,107380.0,0.99739232]
[1750932262311,0.1891369,107390.0,107380.0,0.99739232]
[1750932262813,0.1931369,107390.0,107380.0,0.99839232]
[1750932266711,0.007,107390.0,107380.0,0.99839232]
[1750932273316,0.3608,107410.0,107400.0,0.1861195]
[1750932273522,0.5469026,107410.0,107400.0,1.78157762]
[1750932273823,0.3608,107410.0,107400.0,1.84657762]
[1750932274124,0.5469022,107410.0,107400.0,1.84657762]
[1750932274621,0.5549022,107410.0,107400.0,1.56631791]
[1750932274824,0.5549022,107410.0,107400.0,1.36037791]
[1750932274825,0.6508022,107410.0,107400.0,1.36037791]
[1750932275025,0.6508022,107410.0,107400.0,0.68499791]
[1750932275324,0.6508022,107410.0,107400.0,1.50163791]
[1750932275624,0.6548022,107410.0,107400.0,1.50163791]
[1750932275918,0.6548022,107410.0,107400.0,1.78289762]
[1750932276223,0.93606191,107410.0,107400.0,1.3537595]
[1750932277325,0.6548022,107410.0,107400.0,1.3537595]
[1750932277517,0.6548022,107410.0,107400.0,1.25595033]
[1750932277718,0.93606191,107410.0,107400.0,0.90523043]
[1750932277919,1.09031372,107410.0,107400.0,1.28523043]
[1750932278116,1.09031372,107410.0,107400.0,0.90523043]
[1750932278319,1.09031372,107410.0,107400.0,0.61303043]
[1750932278622,0.58315401,107410.0,107400.0,0.90551043]
[1750932278825,0.67705401,107410.0,107400.0,1.21551043]
[1750932280218,0.67705401,107410.0,107400.0,0.57303043]
[1750932280423,0.67705401,107410.0,107400.0,1.21435043]
[1750932280622,0.58315401,107410.0,107400.0,1.21435043]
[1750932280830,0.58315401,107410.0,107400.0,1.24635043]
[1750932281030,0.61335401,107410.0,107400.0,1.24635043]
[1750932281723,0.64645401,107410.0,107400.0,1.24635043]
[1750932282526,0.61335401,107410.0,107400.0,1.24635043]
[1750932282725,0.61335401,107410.0,107400.0,1.52761014]
[1750932282927,0.61335401,107410.0,107400.0,1.67548855]
[1750932283123,0.61335401,107410.0,107400.0,1.45542884]
[1750932283323,0.64645401,107410.0,107400.0,1.45542884]
[1750932283933,0.58315401,107410.0,107400.0,1.73668855]
[1750932284131,0.39705181,107410.0,107400.0,1.73668855]
[1750932284330,0.3728,107410.0,107400.0,1.73668855]
[1750932285734,0.5589022,107410.0,107400.0,1.73668855]
[1750932288136,0.5589022,107410.0,107400.0,1.45542884]
[1750932288337,0.5589022,107410.0,107400.0,1.73668855]
[1750932288536,0.5914022,107410.0,107400.0,1.73668855]
[1750932289135,0.5914022,107410.0,107400.0,1.45542884]
[1750932289335,0.5914022,107410.0,107400.0,1.73668855]
[1750932290034,0.5914022,107410.0,107400.0,1.09536855]
[1750932290228,0.5914022,107410.0,107400.0,1.90660855]
[1750932294041,0.5914022,107410.0,107400.0,1.62534884]
[1750932294245,0.5914022,107410.0,107400.0,1.90660855]
[1750932294443,0.5589022,107410.0,107400.0,1.90660855]
[1750932300544,0.3728,107410.0,107400.0,1.90660855]
[1750932302551,0.3728,107410.0,107400.0,1.75873014]
[1750932302754,0.012,107410.0,107400.0,2.54866826]
[1750932303157,0.001,107420.0,107410.0,0.1861022]
[1750932303456,0.3618,107450.0,107440.0,0.1860502]
[1750932303652,0.66358553,107450.0,107440.0,1.1560502]
[1750932303848,0.66358553,107450.0,107440.0,1.43730991]
[1750932304046,0.47755263,107450.0,107440.0,1.46840991]
[1750932304252,0.001,107450.0,107440.0,1.46840991]
[1750932304448,0.001,107450.0,107440.0,1.94754962]
[1750932304656,0.001,107450.0,107440.0,2.45622803]
[1750932305051,0.01,107450.0,107440.0,2.45722803]
[1750932305647,0.01,107450.0,107440.0,2.17596832]
[1750932305853,0.002,107450.0,107440.0,1.81416832]
[1750932306667,0.001,107450.0,107440.0,1.81816832]
[1750932308664,0.002,107450.0,107440.0,1.81792832]
[1750932309162,0.002,107450.0,107440.0,2.17872832]
[1750932309563,0.002,107450.0,107440.0,2.45998803]
[1750932310567,0.002,107450.0,107440.0,2.46915473]
[1750932312565,0.002,107450.0,107440.0,2.18789502]
[1750932313764,0.002,107450.0,107440.0,2.46915473]
[1750932318570,1e-07,107450.0,107440.0,2.46915473]
[1750932318769,1e-07,107450.0,107440.0,3.27343473]
[1750932319668,0.0635,107480.0,107470.0,0.1859983]
[1750932319873,0.0333,107480.0,107470.0,1.75669642]
[1750932320071,0.0333,107480.0,107470.0,1.85379642]
[1750932320278,0.001,107480.0,107470.0,1.85379642]
[1750932321269,0.186981,107480.0,107470.0,1.85379642]
[1750932322074,0.191981,107480.0,107470.0,1.85379642]
[1750932322769,0.006,107480.0,107470.0,1.85379642]
[1750932323470,0.191981,107480.0,107470.0,1.92703878]
[1750932324175,0.193981,107480.0,107470.0,1.92703878]
[1750932324978,0.193981,107480.0,107470.0,1.64577907]
[1750932325171,0.193981,107480.0,107470.0,1.92703878]
[1750932325377,0.225981,107480.0,107470.0,1.92703878]
[1750932327882,0.225981,107480.0,107470.0,1.64577907]
[1750932328084,0.225981,107480.0,107470.0,1.92703878]
[1750932328680,0.04,107480.0,107470.0,1.92703878]
[1750932329382,0.008,107480.0,107470.0,2.28783878]
[1750932329978,0.193981,107480.0,107470.0,2.28783878]
[1750932330284,0.193981,107480.0,107470.0,2.00657907]
[1750932330486,0.225281,107480.0,107470.0,2.28783878]
[1750932330685,0.225281,107480.0,107470.0,2.00657907]
[1750932330879,0.225281,107480.0,107470.0,2.28783878]
[1750932331081,0.225281,107480.0,107470.0,2.00657907]
[1750932331578,0.225281,107480.0,107470.0,2.28783878]
[1750932331784,0.22656142,107480.0,107470.0,2.28783878]
[1750932332884,0.22656142,107480.0,107470.0,0.75711907]
[1750932333076,0.62026142,107480.0,107470.0,1.39012066]
[1750932333378,0.64509632,107480.0,107470.0,0.60924066]
[1750932333579,0.64509632,107480.0,107470.0,1.39012066]
[1750932334475,0.64509632,107480.0,107470.0,1.67138037]
[1750932335685,0.64509632,107480.0,107470.0,1.39012066]
[1750932335892,0.64509632,107480.0,107470.0,1.67138037]
[1750932336082,0.64509632,107480.0,107470.0,1.39012066]
[1750932336688,0.64509632,107480.0,107470.0,1.67138037]
[1750932337281,0.64509632,107480.0,107470.0,1.39012066]
[1750932337482,0.64509632,107480.0,107470.0,1.67138037]
[1750932338689,0.64509632,107480.0,107470.0,1.39012066]
[1750932339390,0.64509632,107480.0,107470.0,0.60924066]
[1750932339391,0.92635603,107480.0,107470.0,0.60924066]
[1750932339592,0.64509632,107480.0,107470.0,1.23088066]
[1750932339801,0.92635603,107480.0,107470.0,1.23088066]
[1750932340091,0.92635603,107480.0,107470.0,0.60924066]
[1750932340284,0.92635603,107480.0,107470.0,1.23040066]
[1750932341091,0.92635603,107480.0,107470.0,0.88040066]
[1750932341483,0.92635603,107480.0,107470.0,1.24040066]
[1750932342592,0.64509632,107480.0,107470.0,1.24040066]
[1750932342889,0.92635603,107480.0,107470.0,1.24040066]
[1750932343088,1.01635603,107480.0,107470.0,0.25924066]
[1750932343281,1.01635603,107480.0,107470.0,0.60924066]
[1750932343487,1.01635603,107480.0,107470.0,0.25924066]
[1750932343790,1.01635603,107480.0,107470.0,0.57924066]
[1750932343989,1.01635603,107480.0,107470.0,0.25924066]
[1750932345194,1.01635603,107480.0,107470.0,0.58924066]
[1750932345395,1.01635603,107480.0,107470.0,0.58924076]
[1750932345692,1.01635603,107480.0,107470.0,0.60924076]
[1750932346496,1.28635603,107480.0,107470.0,0.60924076]
[1750932346792,1.28635603,107480.0,107470.0,0.25924076]
[1750932346982,1.28635603,107480.0,107470.0,0.56924076]
[1750932347390,1.00509632,107480.0,107470.0,0.56924076]
[1750932347591,1.28635603,107480.0,107470.0,0.56924076]
[1750932347795,1.00509632,107480.0,107470.0,0.56924076]
[1750932347995,1.28635603,107480.0,107470.0,0.56924076]
[1750932349298,1.00509632,107480.0,107470.0,0.56924076]
[1750932349494,1.28635603,107480.0,107470.0,0.56924076]
[1750932349895,1.28635603,107480.0,107470.0,0.61924076]
[1750932350196,1.28635603,107480.0,107470.0,0.25924076]
[1750932351592,1.28635603,107480.0,107470.0,0.62924076]
[1750932353999,1.28635603,107480.0,107470.0,0.25924076]
[1750932355099,1.90339603,107480.0,107470.0,0.25924076]
[1750932357701,1.90339603,107480.0,107470.0,0.61924076]
[1750932358199,0.94089632,107480.0,107470.0,0.90050047]
[1750932358500,1.19669632,107480.0,107470.0,0.99570047]
[1750932358804,1.19669632,107480.0,107470.0,0.71444076]
[1750932360403,0.58089632,107480.0,107470.0,0.71444076]
[1750932360804,0.03411532,107480.0,107470.0,2.11917888]
[1750932361000,0.00928042,107480.0,107470.0,2.11917888]
[1750932361601,0.00928042,107480.0,107470.0,1.83791917]
[1750932361802,0.00928042,107480.0,107470.0,2.11917888]
[1750932362512,0.3608,107500.0,107490.0,0.1859637]
[1750932362710,0.3608,107500.0,107490.0,1.74666182]
[1750932362912,0.3608,107500.0,107490.0,1.80856182]
[1750932364814,0.38546479,107500.0,107490.0,1.80856182]
[1750932365016,0.57141119,107500.0,107490.0,1.80856182]
[1750932365216,0.5467464,107500.0,107490.0,1.80856182]
[1750932365711,0.3608,107500.0,107490.0,1.84026182]
[1750932366308,0.5477465,107500.0,107490.0,1.84026182]
[1750932367316,0.5497465,107500.0,107490.0,1.84026182]
[1750932368115,0.5477465,107500.0,107490.0,1.84026182]
[1750932368315,0.5497465,107500.0,107490.0,1.84026182]
[1750932369411,0.5497465,107500.0,107490.0,1.55900211]
[1750932369710,0.5497465,107500.0,107490.0,1.84026182]
[1750932373916,0.3638,107500.0,107490.0,1.84026182]
[1750932376319,0.003,107500.0,107490.0,1.55900211]
[1750932376725,0.003,107500.0,107490.0,1.84026182]
[1750932379218,0.003,107500.0,107490.0,2.20106182]
[1750932379621,0.002,107500.0,107490.0,2.20206182]
[1750932380225,0.3618,107510.0,107500.0,0.1859464]
[1750932380418,0.3618,107510.0,107500.0,1.05948452]
[1750932381428,0.3628,107510.0,107500.0,1.05948452]
[1750932382827,0.3638,107510.0,107500.0,1.05948452]
[1750932383027,0.5497291,107510.0,107500.0,1.05948452]
[1750932384829,0.3638,107510.0,107500.0,1.05948452]
[1750932385131,0.5497292,107510.0,107500.0,1.82744452]
[1750932388027,0.3946,107510.0,107500.0,1.54618481]
[1750932388222,0.5497292,107510.0,107500.0,1.82744452]
[1750932390028,0.3638,107510.0,107500.0,1.82744452]
[1750932390632,0.5497292,107510.0,107500.0,1.82744452]
[1750932391130,0.003,107510.0,107500.0,1.82744452]
[1750932393029,0.003,107510.0,107500.0,1.54618481]
[1750932393232,0.003,107510.0,107500.0,1.82744452]
[1750932398443,0.003,107510.0,107500.0,2.18824452]
[1750932400139,0.002,107510.0,107500.0,2.18824452]
[1750932400638,0.001,107510.0,107500.0,2.18924452]
[1750932401730,0.001,107510.0,107500.0,1.82844452]
[1750932402640,0.001,107510.0,107500.0,1.68056611]
[1750932402836,0.001,107510.0,107500.0,1.82844452]
[1750932404741,0.00228037,107510.0,107500.0,1.82844452]
[1750932412249,0.00228037,107510.0,107500.0,0.74672481]
[1750932412441,0.00228037,107510.0,107500.0,1.78622452]
[1750932412636,0.00228037,107510.0,107500.0,1.81892452]
[1750932416355,0.00228037,107510.0,107500.0,1.95811693]
[1750932421254,0.00228037,107510.0,107500.0,1.19987693]
[1750932421461,0.00228037,107510.0,107500.0,1.95291693]
[1750932421666,0.00228037,107510.0,107500.0,1.53246481]
[1750932421854,0.00228037,107510.0,107500.0,1.95291693]
[1750932425057,0.00228037,107510.0,107500.0,1.53246481]
[1750932425263,0.00228037,107510.0,107500.0,1.95291693]
[1750932425467,0.00228037,107510.0,107500.0,1.19987693]
[1750932425672,0.00228037,107510.0,107500.0,1.95271693]
[1750932428186,0.00228037,107510.0,107500.0,2.04533626]
[1750932430384,0.00228037,107510.0,107500.0,1.95271693]
[1750932430581,0.5773963,107530.0,107500.0,2.43041592]
[1750932430781,0.71007265,107530.0,107520.0,0.60636412]
[1750932430980,0.44707265,107530.0,107520.0,1.69824412]
[1750932431181,0.4223,107530.0,107520.0,1.76104412]
[1750932431377,0.0615,107530.0,107520.0,1.76104412]
[1750932431587,0.4223,107530.0,107520.0,1.7701518]
[1750932431890,0.4253,107530.0,107520.0,1.91803021]
[1750932432389,0.4223,107530.0,107520.0,1.91803021]
[1750932432687,0.4253,107530.0,107520.0,1.7701518]
[1750932432887,0.4253,107530.0,107520.0,1.91803021]
[1750932433789,0.4273,107530.0,107520.0,1.91803021]
[1750932434291,0.4253,107530.0,107520.0,1.91803021]
[1750932434588,0.4243,107530.0,107520.0,1.91803021]
[1750932435288,0.4243,107530.0,107520.0,0.53501968]
[1750932435587,0.4573,107530.0,107520.0,1.85495021]
[1750932439089,0.4573,107530.0,107520.0,1.88635021]
[1750932440188,0.6431948,107530.0,107520.0,1.10335021]
[1750932440490,0.6431948,107530.0,107520.0,1.85475021]
[1750932440689,0.6431948,107530.0,107520.0,1.7068718]
[1750932440883,0.4573,107530.0,107520.0,1.85475021]
[1750932442482,0.85342076,107530.0,107520.0,0.53501968]
[1750932442678,1.23144649,107530.0,107520.0,0.827032]
[1750932442881,1.06769783,107530.0,107520.0,0.205912]
[1750932444288,1.13781896,107530.0,107520.0,0.205912]
[1750932445491,0.85747177,107530.0,107520.0,0.205912]
[1750932446993,1.13781896,107530.0,107520.0,0.205912]
[1750932447192,1.09134156,107530.0,107520.0,0.205912]
[1750932447793,0.81099437,107530.0,107520.0,0.205912]
[1750932448784,1.09134156,107530.0,107520.0,0.205912]
[1750932449896,0.81099437,107530.0,107520.0,0.205912]
[1750932450194,1.09134156,107530.0,107520.0,0.205912]